[Event "Titled Tuesday Blitz June 20 Late 2023"]
[White "Turayev, Shahruh"]
[Black "Pinero Rodriguez, Carlos Jose"]
[WhiteFideId "14003856"]
[BlackFideId "3901726"]
[WhiteElo "2113"]
[BlackElo "2146"]
[Result "1-0"]
[Round "9"]
[TimeControl "180+2"]
[Date "2023.06.20"]
[WhiteClock "0:00:25"]
[BlackClock "0:00:34"]
[Board "47"]

1. e4 {[%clk 0:02:59]}  c5 {[%clk 0:03:00]} 2. Nc3 {[%clk 0:03:00]}  e6 {[%clk 0:02:59]} 3. g3 {[%clk 0:03:00]}  a6 {[%clk 0:02:59]} 4. a4 {[%clk 0:02:59]}  Nc6 {[%clk 0:02:59]} 5. Bg2 {[%clk 0:03:00]}  Nf6 {[%clk 0:03:00]} 6. d3 {[%clk 0:03:00]}  d5 {[%clk 0:03:00]} 7. exd5 {[%clk 0:03:00]}  exd5 {[%clk 0:03:01]} 8. Nge2 {[%clk 0:03:00]}  h6 {[%clk 0:02:59]} 9. Nf4 {[%clk 0:02:57]}  d4 {[%clk 0:02:57]} 10. Ncd5 {[%clk 0:02:57]}  Nxd5 {[%clk 0:02:56]} 11. Nxd5 {[%clk 0:02:58]}  Be6 {[%clk 0:02:55]} 12. Nf4 {[%clk 0:02:58]}  Bd7 {[%clk 0:02:54]} 13. O-O {[%clk 0:02:53]}  Be7 {[%clk 0:02:54]} 14. Nd5 {[%clk 0:02:49]}  O-O {[%clk 0:02:53]} 15. Bf4 {[%clk 0:02:44]}  Bg5 {[%clk 0:02:50]} 16. Bd6 {[%clk 0:02:39]}  Re8 {[%clk 0:02:44]} 17. Nc7 {[%clk 0:02:31]}  Rc8 {[%clk 0:02:41]} 18. Nxe8 {[%clk 0:02:27]}  Bxe8 {[%clk 0:02:42]} 19. Bxc5 {[%clk 0:02:17]}  Qa5 {[%clk 0:02:34]} 20. Bd6 {[%clk 0:01:54]}  Rd8 {[%clk 0:02:26]} 21. Ba3 {[%clk 0:01:53]}  Bf6 {[%clk 0:02:21]} 22. Re1 {[%clk 0:01:35]}  Rc8 {[%clk 0:02:20]} 23. Qg4 {[%clk 0:01:32]}  Rd8 {[%clk 0:02:09]} 24. b3 {[%clk 0:01:04]}  h5 {[%clk 0:02:02]} 25. Qf3 {[%clk 0:00:57]}  Qc7 {[%clk 0:01:08]} 26. h3 {[%clk 0:00:48]}  b5 {[%clk 0:01:06]} 27. axb5 {[%clk 0:00:46]}  axb5 {[%clk 0:01:07]} 28. Qxh5 {[%clk 0:00:45]}  b4 {[%clk 0:00:56]} 29. Bc1 {[%clk 0:00:42]}  g6 {[%clk 0:00:55]} 30. Qf3 {[%clk 0:00:40]}  Be5 {[%clk 0:00:48]} 31. Bf4 {[%clk 0:00:38]}  Bxf4 {[%clk 0:00:48]} 32. Qxf4 {[%clk 0:00:39]}  Qb6 {[%clk 0:00:46]} 33. Qf6 {[%clk 0:00:28]}  Bd7 {[%clk 0:00:34]} 34. Re7 {[%clk 0:00:25]} 1-0


[Site "https://www.chess.com"]

[Event "Titled Tuesday Blitz June 20 Late 2023"]
[White "Zhigalko, Sergei"]
[Black "MKlose11"]
[WhiteFideId "13502956"]
[WhiteElo "2626"]
[BlackElo "2585"]
[Result "1-0"]
[Round "9"]
[TimeControl "180+2"]
[Date "2023.06.20"]
[WhiteClock "0:01:23"]
[BlackClock "0:00:46"]
[Board "48"]

1. e4 {[%clk 0:03:00]}  e6 {[%clk 0:02:57]} 2. d4 {[%clk 0:03:00]}  d5 {[%clk 0:02:57]} 3. e5 {[%clk 0:03:01]}  c5 {[%clk 0:02:57]} 4. c3 {[%clk 0:03:02]}  Bd7 {[%clk 0:02:57]} 5. Nf3 {[%clk 0:03:02]}  Nc6 {[%clk 0:02:57]} 6. Be2 {[%clk 0:03:02]}  Be7 {[%clk 0:02:57]} 7. O-O {[%clk 0:03:02]}  f6 {[%clk 0:02:57]} 8. Re1 {[%clk 0:02:57]}  fxe5 {[%clk 0:02:55]} 9. Nxe5 {[%clk 0:02:54]}  Nxe5 {[%clk 0:02:52]} 10. dxe5 {[%clk 0:02:53]}  Bg5 {[%clk 0:02:47]} 11. Bd3 {[%clk 0:02:25]}  Bxc1 {[%clk 0:02:40]} 12. Qh5+ {[%clk 0:02:25]}  Kf8 {[%clk 0:02:06]} 13. Rxc1 {[%clk 0:02:24]}  Ne7 {[%clk 0:01:54]} 14. Nd2 {[%clk 0:02:22]}  g6 {[%clk 0:01:46]} 15. Qh6+ {[%clk 0:02:18]}  Kg8 {[%clk 0:01:46]} 16. b4 {[%clk 0:02:11]}  b6 {[%clk 0:01:43]} 17. bxc5 {[%clk 0:02:10]}  bxc5 {[%clk 0:01:43]} 18. Rab1 {[%clk 0:02:10]}  Qf8 {[%clk 0:01:41]} 19. Qh4 {[%clk 0:02:03]}  c4 {[%clk 0:01:33]} 20. Bc2 {[%clk 0:01:58]}  Bc6 {[%clk 0:01:32]} 21. Nf3 {[%clk 0:01:57]}  Nf5 {[%clk 0:01:21]} 22. Bxf5 {[%clk 0:01:56]}  exf5 {[%clk 0:01:10]} 23. Nd4 {[%clk 0:01:53]}  Rc8 {[%clk 0:01:04]} 24. Nxc6 {[%clk 0:01:38]}  Rxc6 {[%clk 0:01:05]} 25. Rb7 {[%clk 0:01:38]}  Re6 {[%clk 0:01:00]} 26. Qd4 {[%clk 0:01:24]}  Qd8 {[%clk 0:00:46]} 27. Rcb1 {[%clk 0:01:23]} 1-0


[Site "https://www.chess.com"]

[Event "Titled Tuesday Blitz June 20 Late 2023"]
[White "Sreyas Payyappat"]
[Black "Goryachkina, Aleksandra"]
[WhiteFideId "46674969"]
[BlackFideId "4147103"]
[WhiteElo "2043"]
[BlackElo "2471"]
[Result "0-1"]
[Round "9"]
[TimeControl "180+2"]
[Date "2023.06.20"]
[WhiteClock "0:00:03"]
[BlackClock "0:00:11"]
[Board "50"]

1. e4 {[%clk 0:03:00]}  c6 {[%clk 0:02:59]} 2. d4 {[%clk 0:03:00]}  d5 {[%clk 0:03:00]} 3. Nc3 {[%clk 0:03:01]}  dxe4 {[%clk 0:02:59]} 4. Nxe4 {[%clk 0:03:02]}  Nf6 {[%clk 0:02:59]} 5. Nxf6+ {[%clk 0:03:02]}  exf6 {[%clk 0:03:00]} 6. Bc4 {[%clk 0:03:03]}  Bd6 {[%clk 0:02:58]} 7. Qe2+ {[%clk 0:03:03]}  Be7 {[%clk 0:02:58]} 8. Nf3 {[%clk 0:03:01]}  O-O {[%clk 0:02:58]} 9. O-O {[%clk 0:03:00]}  Bg4 {[%clk 0:02:57]} 10. Re1 {[%clk 0:02:57]}  Bd6 {[%clk 0:02:56]} 11. h3 {[%clk 0:02:57]}  Bh5 {[%clk 0:02:55]} 12. g4 {[%clk 0:02:54]}  Bg6 {[%clk 0:02:55]} 13. Nh4 {[%clk 0:02:53]}  Qc7 {[%clk 0:02:33]} 14. c3 {[%clk 0:02:20]}  Nd7 {[%clk 0:02:31]} 15. Ng2 {[%clk 0:01:58]}  f5 {[%clk 0:02:21]} 16. f4 {[%clk 0:01:52]}  Nf6 {[%clk 0:02:12]} 17. Bd2 {[%clk 0:01:42]}  Qd7 {[%clk 0:02:03]} 18. g5 {[%clk 0:01:33]}  Bh5 {[%clk 0:02:03]} 19. Qd3 {[%clk 0:01:03]}  Ne4 {[%clk 0:02:03]} 20. Re3 {[%clk 0:01:00]}  Rae8 {[%clk 0:01:53]} 21. Rae1 {[%clk 0:00:55]}  Re7 {[%clk 0:01:53]} 22. Bc1 {[%clk 0:00:44]}  Rfe8 {[%clk 0:01:53]} 23. Qc2 {[%clk 0:00:40]}  Qc7 {[%clk 0:01:45]} 24. Kh1 {[%clk 0:00:13]}  a6 {[%clk 0:01:29]} 25. Bd3 {[%clk 0:00:12]}  c5 {[%clk 0:01:16]} 26. Bxe4 {[%clk 0:00:11]}  fxe4 {[%clk 0:01:16]} 27. Rxe4 {[%clk 0:00:10]}  Bf3 {[%clk 0:01:15]} 28. Rxe7 {[%clk 0:00:08]}  Rxe7 {[%clk 0:01:16]} 29. Rxe7 {[%clk 0:00:08]}  Qxe7 {[%clk 0:01:17]} 30. Qf2 {[%clk 0:00:08]}  Qe4 {[%clk 0:01:14]} 31. Kg1 {[%clk 0:00:05]}  b6 {[%clk 0:00:54]} 32. Bd2 {[%clk 0:00:02]}  g6 {[%clk 0:00:48]} 33. Ne1 {[%clk 0:00:02]}  Bh5 {[%clk 0:00:42]} 34. Qe3 {[%clk 0:00:02]}  Qb1 {[%clk 0:00:36]} 35. Qe8+ {[%clk 0:00:02]}  Bf8 {[%clk 0:00:36]} 36. b3 {[%clk 0:00:02]}  Qxa2 {[%clk 0:00:33]} 37. Qe3 {[%clk 0:00:02]}  Qxb3 {[%clk 0:00:32]} 38. Nd3 {[%clk 0:00:02]}  Qd1+ {[%clk 0:00:24]} 39. Kf2 {[%clk 0:00:02]}  cxd4 {[%clk 0:00:18]} 40. cxd4 {[%clk 0:00:01]}  Qc2 {[%clk 0:00:18]} 41. Ne5 {[%clk 0:00:01]}  Bb4 {[%clk 0:00:16]} 42. Nd7 {[%clk 0:00:01]}  Qxd2+ {[%clk 0:00:15]} 43. Qxd2 {[%clk 0:00:02]}  Bxd2 {[%clk 0:00:15]} 44. Nxb6 {[%clk 0:00:03]}  Kf8 {[%clk 0:00:14]} 45. Kg3 {[%clk 0:00:02]}  Ke7 {[%clk 0:00:14]} 46. d5 {[%clk 0:00:03]}  Be1+ {[%clk 0:00:12]} 47. Kg2 {[%clk 0:00:02]}  Kd6 {[%clk 0:00:13]} 48. Kf1 {[%clk 0:00:03]}  Bb4 {[%clk 0:00:11]} 49. Kf2 {[%clk 0:00:02]}  Bc5+ {[%clk 0:00:11]} 50. Kg3 {[%clk 0:00:03]}  Bxb6 {[%clk 0:00:12]} 51. Kh4 {[%clk 0:00:03]}  Bf2# {[%clk 0:00:11]} 0-1


[Site "https://www.chess.com"]

[Event "Titled Tuesday Blitz June 20 Late 2023"]
[White "Manukyan, Sargis A."]
[Black "Ortega Amarelle, Mariano"]
[WhiteFideId "13303970"]
[BlackFideId "3504301"]
[WhiteElo "2187"]
[BlackElo "2392"]
[Result "0-1"]
[Round "9"]
[TimeControl "180+2"]
[Date "2023.06.20"]
[WhiteClock "0:01:15"]
[BlackClock "0:00:49"]
[Board "53"]

1. d4 {[%clk 0:03:00]}  d5 {[%clk 0:02:57]} 2. c4 {[%clk 0:03:01]}  c6 {[%clk 0:02:58]} 3. Nc3 {[%clk 0:03:02]}  Nf6 {[%clk 0:02:58]} 4. e3 {[%clk 0:03:02]}  Bf5 {[%clk 0:02:57]} 5. cxd5 {[%clk 0:03:02]}  cxd5 {[%clk 0:02:57]} 6. Qb3 {[%clk 0:03:03]}  Nc6 {[%clk 0:02:42]} 7. Qxb7 {[%clk 0:03:02]}  Bd7 {[%clk 0:02:43]} 8. Qb3 {[%clk 0:03:03]}  Rb8 {[%clk 0:02:41]} 9. Qd1 {[%clk 0:03:02]}  e5 {[%clk 0:02:39]} 10. dxe5 {[%clk 0:03:02]}  Nxe5 {[%clk 0:02:40]} 11. Be2 {[%clk 0:03:02]}  Bd6 {[%clk 0:02:38]} 12. Nf3 {[%clk 0:03:03]}  O-O {[%clk 0:02:36]} 13. O-O {[%clk 0:03:04]}  Qe7 {[%clk 0:02:26]} 14. g3 {[%clk 0:02:58]}  Bh3 {[%clk 0:02:21]} 15. Re1 {[%clk 0:02:58]}  Rfd8 {[%clk 0:02:20]} 16. Nxe5 {[%clk 0:02:58]}  Bxe5 {[%clk 0:02:19]} 17. Bf1 {[%clk 0:02:58]}  Bxf1 {[%clk 0:02:07]} 18. Rxf1 {[%clk 0:02:59]}  Bxc3 {[%clk 0:02:00]} 19. b3 {[%clk 0:02:59]}  Bxa1 {[%clk 0:01:59]} 20. Bd2 {[%clk 0:02:39]}  Be5 {[%clk 0:01:46]} 21. h4 {[%clk 0:02:36]}  h5 {[%clk 0:01:44]} 22. Kg2 {[%clk 0:02:35]}  d4 {[%clk 0:01:44]} 23. e4 {[%clk 0:02:12]}  Nxe4 {[%clk 0:01:36]} 24. Ba5 {[%clk 0:02:12]}  Nc3 {[%clk 0:01:32]} 25. Qxh5 {[%clk 0:02:10]}  Rd5 {[%clk 0:01:27]} 26. Bxc3 {[%clk 0:01:41]}  dxc3 {[%clk 0:01:28]} 27. f4 {[%clk 0:01:41]}  Rd2+ {[%clk 0:01:26]} 28. Kh3 {[%clk 0:01:42]}  Qd7+ {[%clk 0:01:25]} 29. f5 {[%clk 0:01:42]}  Bf6 {[%clk 0:01:24]} 30. b4 {[%clk 0:01:35]}  Qd5 {[%clk 0:01:21]} 31. Rg1 {[%clk 0:01:35]}  c2 {[%clk 0:01:19]} 32. b5 {[%clk 0:01:19]}  Rd1 {[%clk 0:01:07]} 33. b6 {[%clk 0:01:15]}  axb6 {[%clk 0:01:02]} 34. a4 {[%clk 0:01:13]}  Rxg1 {[%clk 0:01:00]} 35. a5 {[%clk 0:01:14]}  Rh1+ {[%clk 0:00:59]} 36. Kg4 {[%clk 0:01:13]}  Qd1+ {[%clk 0:00:58]} 37. Kf4 {[%clk 0:01:13]}  Qxh5 {[%clk 0:00:57]} 38. g4 {[%clk 0:01:13]}  Qxg4+ {[%clk 0:00:54]} 39. Kxg4 {[%clk 0:01:13]}  Rxh4+ {[%clk 0:00:54]} 40. Kg3 {[%clk 0:01:13]}  bxa5 {[%clk 0:00:53]} 41. Kf3 {[%clk 0:01:13]}  Rb3+ {[%clk 0:00:53]} 42. Kg2 {[%clk 0:01:14]}  Rd4 {[%clk 0:00:51]} 43. Kf1 {[%clk 0:01:15]}  Rd2 {[%clk 0:00:50]} 44. Ke1 {[%clk 0:01:15]}  c1=Q# {[%clk 0:00:49]} 0-1


[Site "https://www.chess.com"]

[Event "Titled Tuesday Blitz June 20 Late 2023"]
[White "Novikov, Evgenij"]
[Black "Jaskolka, Tomasz"]
[WhiteFideId "4125380"]
[BlackFideId "1170791"]
[WhiteElo "2242"]
[BlackElo "2155"]
[Result "0-1"]
[Round "9"]
[TimeControl "180+2"]
[Date "2023.06.20"]
[WhiteClock "0:00:19"]
[BlackClock "0:00:06"]
[Board "54"]

1. d4 {[%clk 0:02:54]}  d5 {[%clk 0:02:59]} 2. c4 {[%clk 0:02:53]}  e5 {[%clk 0:03:00]} 3. dxe5 {[%clk 0:02:51]}  d4 {[%clk 0:03:01]} 4. Nf3 {[%clk 0:02:50]}  Nc6 {[%clk 0:03:02]} 5. Nbd2 {[%clk 0:02:50]}  Nge7 {[%clk 0:03:01]} 6. g3 {[%clk 0:02:49]}  Ng6 {[%clk 0:03:00]} 7. Bg2 {[%clk 0:02:49]}  Bf5 {[%clk 0:02:50]} 8. Nb3 {[%clk 0:02:39]}  d3 {[%clk 0:02:28]} 9. O-O {[%clk 0:02:27]}  dxe2 {[%clk 0:02:10]} 10. Qxe2 {[%clk 0:02:28]}  Bd3 {[%clk 0:02:06]} 11. Qe3 {[%clk 0:02:23]}  Bxf1 {[%clk 0:02:06]} 12. Bxf1 {[%clk 0:02:20]}  Be7 {[%clk 0:01:57]} 13. Bd2 {[%clk 0:02:20]}  O-O {[%clk 0:01:56]} 14. Rd1 {[%clk 0:02:16]}  Re8 {[%clk 0:01:54]} 15. Bc3 {[%clk 0:02:16]}  Qxd1 {[%clk 0:01:50]} 16. h4 {[%clk 0:02:13]}  Bb4 {[%clk 0:01:41]} 17. h5 {[%clk 0:02:11]}  Bxc3 {[%clk 0:01:34]} 18. hxg6 {[%clk 0:02:10]}  Nxe5 {[%clk 0:01:28]} 19. gxf7+ {[%clk 0:01:39]}  Nxf7 {[%clk 0:01:19]} 20. Qxc3 {[%clk 0:01:38]}  Rad8 {[%clk 0:01:02]} 21. Nbd4 {[%clk 0:01:38]}  Rxd4 {[%clk 0:00:52]} 22. Nxd4 {[%clk 0:01:03]}  Re1 {[%clk 0:00:51]} 23. Nf5 {[%clk 0:01:02]}  Ne5 {[%clk 0:00:29]} 24. Ne3 {[%clk 0:00:58]}  Nf3+ {[%clk 0:00:12]} 25. Kg2 {[%clk 0:00:56]}  Qd4 {[%clk 0:00:03]} 26. Kxf3 {[%clk 0:00:47]}  Qxc3 {[%clk 0:00:04]} 27. bxc3 {[%clk 0:00:48]}  Rc1 {[%clk 0:00:04]} 28. Nd5 {[%clk 0:00:44]}  Rxf1 {[%clk 0:00:04]} 29. Nxc7 {[%clk 0:00:43]}  Rc1 {[%clk 0:00:04]} 30. Nd5 {[%clk 0:00:42]}  Kf7 {[%clk 0:00:05]} 31. Ke3 {[%clk 0:00:37]}  Rc2 {[%clk 0:00:05]} 32. Nb4 {[%clk 0:00:32]}  Rxc3+ {[%clk 0:00:05]} 33. Kd4 {[%clk 0:00:33]}  Ra3 {[%clk 0:00:05]} 34. c5 {[%clk 0:00:28]}  a5 {[%clk 0:00:06]} 35. c6 {[%clk 0:00:24]}  bxc6 {[%clk 0:00:05]} 36. Nxc6 {[%clk 0:00:25]}  Rxa2 {[%clk 0:00:05]} 37. f4 {[%clk 0:00:24]}  Rg2 {[%clk 0:00:05]} 38. g4 {[%clk 0:00:23]}  Ke6 {[%clk 0:00:05]} 39. f5+ {[%clk 0:00:20]}  Kd6 {[%clk 0:00:05]} 40. Ne5 {[%clk 0:00:19]}  Rd2+ {[%clk 0:00:05]} 41. Ke3 {[%clk 0:00:20]}  Kxe5 {[%clk 0:00:05]} 42. Kxd2 {[%clk 0:00:19]}  Kf4 {[%clk 0:00:06]} 0-1


[Site "https://www.chess.com"]

[Event "Titled Tuesday Blitz June 20 Late 2023"]
[White "Fishbein, Alexander"]
[Black "Berezin, Viktor"]
[WhiteFideId "2000377"]
[BlackFideId "14107872"]
[WhiteElo "2403"]
[BlackElo "2310"]
[Result "1-0"]
[Round "9"]
[TimeControl "180+2"]
[Date "2023.06.20"]
[WhiteClock "0:01:34"]
[BlackClock "0:00:24"]
[Board "55"]

1. e4 {[%clk 0:03:00]}  g6 {[%clk 0:02:54]} 2. d4 {[%clk 0:02:54]}  Bg7 {[%clk 0:02:53]} 3. Nf3 {[%clk 0:02:52]}  d6 {[%clk 0:02:54]} 4. c3 {[%clk 0:02:49]}  Nf6 {[%clk 0:02:54]} 5. Bb5+ {[%clk 0:02:48]}  c6 {[%clk 0:02:53]} 6. Bd3 {[%clk 0:02:47]}  O-O {[%clk 0:02:53]} 7. O-O {[%clk 0:02:47]}  Nbd7 {[%clk 0:02:53]} 8. Nbd2 {[%clk 0:02:45]}  e5 {[%clk 0:02:53]} 9. Re1 {[%clk 0:02:43]}  Qc7 {[%clk 0:02:53]} 10. a4 {[%clk 0:02:42]}  a5 {[%clk 0:02:51]} 11. Nc4 {[%clk 0:02:41]}  Rd8 {[%clk 0:02:33]} 12. Qc2 {[%clk 0:02:37]}  Nh5 {[%clk 0:02:13]} 13. Bg5 {[%clk 0:02:35]}  Re8 {[%clk 0:02:08]} 14. Rad1 {[%clk 0:02:33]}  Nf4 {[%clk 0:02:05]} 15. Bxf4 {[%clk 0:02:30]}  exf4 {[%clk 0:02:06]} 16. Qd2 {[%clk 0:02:28]}  Bh6 {[%clk 0:01:52]} 17. e5 {[%clk 0:02:20]}  dxe5 {[%clk 0:01:48]} 18. Nfxe5 {[%clk 0:02:15]}  Nxe5 {[%clk 0:01:43]} 19. dxe5 {[%clk 0:02:13]}  Be6 {[%clk 0:01:41]} 20. Nd6 {[%clk 0:02:10]}  Red8 {[%clk 0:01:38]} 21. Qe2 {[%clk 0:02:07]}  Bd5 {[%clk 0:01:31]} 22. Bc4 {[%clk 0:02:06]}  f3 {[%clk 0:01:30]} 23. gxf3 {[%clk 0:02:00]}  Bxc4 {[%clk 0:01:14]} 24. Qxc4 {[%clk 0:02:01]}  Qe7 {[%clk 0:01:01]} 25. e6 {[%clk 0:01:52]}  f5 {[%clk 0:00:56]} 26. Nf7 {[%clk 0:01:45]}  Rxd1 {[%clk 0:00:56]} 27. Rxd1 {[%clk 0:01:39]}  Bf8 {[%clk 0:00:45]} 28. Rd7 {[%clk 0:01:37]}  Qc5 {[%clk 0:00:28]} 29. Nh6+ {[%clk 0:01:36]}  Kh8 {[%clk 0:00:27]} 30. Qxc5 {[%clk 0:01:36]}  Bxc5 {[%clk 0:00:26]} 31. e7 {[%clk 0:01:35]}  Re8 {[%clk 0:00:24]} 32. Rd8 {[%clk 0:01:34]} 1-0


[Site "https://www.chess.com"]

[Event "Titled Tuesday Blitz June 20 Late 2023"]
[White "Howell, David W L"]
[Black "Liu, Casper"]
[WhiteFideId "410608"]
[BlackFideId "1454153"]
[WhiteElo "2567"]
[BlackElo "2221"]
[Result "1-0"]
[Round "9"]
[TimeControl "180+2"]
[Date "2023.06.20"]
[WhiteClock "0:00:03"]
[BlackClock "0:00:00"]
[Board "57"]

1. d4 {[%clk 0:03:00]}  d5 {[%clk 0:02:59]} 2. Bf4 {[%clk 0:02:59]}  Nf6 {[%clk 0:02:58]} 3. e3 {[%clk 0:03:00]}  e6 {[%clk 0:02:58]} 4. Nf3 {[%clk 0:02:59]}  Bd6 {[%clk 0:02:58]} 5. Bg3 {[%clk 0:02:59]}  O-O {[%clk 0:02:58]} 6. c3 {[%clk 0:02:57]}  c5 {[%clk 0:02:58]} 7. Nbd2 {[%clk 0:02:56]}  Qc7 {[%clk 0:02:58]} 8. a4 {[%clk 0:02:35]}  Nbd7 {[%clk 0:02:58]} 9. a5 {[%clk 0:02:35]}  e5 {[%clk 0:02:58]} 10. dxe5 {[%clk 0:02:33]}  Nxe5 {[%clk 0:02:59]} 11. Nxe5 {[%clk 0:02:33]}  Bxe5 {[%clk 0:03:00]} 12. Be2 {[%clk 0:02:32]}  Bf5 {[%clk 0:02:55]} 13. O-O {[%clk 0:02:31]}  Bxg3 {[%clk 0:02:54]} 14. hxg3 {[%clk 0:02:32]}  Rad8 {[%clk 0:02:53]} 15. Qa4 {[%clk 0:02:27]}  a6 {[%clk 0:02:53]} 16. Rfd1 {[%clk 0:02:18]}  Rfe8 {[%clk 0:02:53]} 17. Bf3 {[%clk 0:02:18]}  Bd3 {[%clk 0:02:37]} 18. Nb3 {[%clk 0:02:10]}  Be4 {[%clk 0:01:53]} 19. Qa3 {[%clk 0:02:08]}  Rc8 {[%clk 0:01:42]} 20. Rd2 {[%clk 0:02:06]}  c4 {[%clk 0:01:29]} 21. Nd4 {[%clk 0:02:04]}  Bd3 {[%clk 0:01:28]} 22. Rad1 {[%clk 0:01:57]}  Qe5 {[%clk 0:01:27]} 23. Qb4 {[%clk 0:01:52]}  Rc7 {[%clk 0:01:25]} 24. Qb6 {[%clk 0:01:16]}  Rce7 {[%clk 0:01:23]} 25. Rxd3 {[%clk 0:01:14]}  cxd3 {[%clk 0:01:22]} 26. Rxd3 {[%clk 0:01:14]}  Qc7 {[%clk 0:01:18]} 27. Qb4 {[%clk 0:01:13]}  Ne4 {[%clk 0:01:09]} 28. Ne2 {[%clk 0:01:10]}  Qc4 {[%clk 0:00:48]} 29. Qxc4 {[%clk 0:01:09]}  dxc4 {[%clk 0:00:49]} 30. Rd4 {[%clk 0:01:10]}  Re5 {[%clk 0:00:48]} 31. Nf4 {[%clk 0:00:49]}  f5 {[%clk 0:00:26]} 32. Nd5 {[%clk 0:00:44]}  Kf7 {[%clk 0:00:21]} 33. Be2 {[%clk 0:00:34]}  Nd6 {[%clk 0:00:05]} 34. Nc7 {[%clk 0:00:33]}  Rd8 {[%clk 0:00:04]} 35. Bxc4+ {[%clk 0:00:33]}  Ke7 {[%clk 0:00:03]} 36. Nd5+ {[%clk 0:00:31]}  Kd7 {[%clk 0:00:03]} 37. Bb3 {[%clk 0:00:30]}  Kc8 {[%clk 0:00:01]} 38. Kf1 {[%clk 0:00:22]}  Nb5 {[%clk 0:00:01]} 39. Nb6+ {[%clk 0:00:18]}  Kc7 {[%clk 0:00:01]} 40. Rc4+ {[%clk 0:00:17]}  Kb8 {[%clk 0:00:01]} 41. Ke2 {[%clk 0:00:18]}  Nd6 {[%clk 0:00:02]} 42. Rd4 {[%clk 0:00:17]}  Nf7 {[%clk 0:00:02]} 43. Bxf7 {[%clk 0:00:17]}  Rxd4 {[%clk 0:00:02]} 44. cxd4 {[%clk 0:00:17]}  Rxa5 {[%clk 0:00:03]} 45. Nc4 {[%clk 0:00:16]}  Rb5 {[%clk 0:00:03]} 46. Kd3 {[%clk 0:00:16]}  a5 {[%clk 0:00:03]} 47. Kc3 {[%clk 0:00:16]}  a4 {[%clk 0:00:04]} 48. Kc2 {[%clk 0:00:14]}  Rb4 {[%clk 0:00:03]} 49. Nd6 {[%clk 0:00:13]}  Rb6 {[%clk 0:00:02]} 50. Nc4 {[%clk 0:00:11]}  Rb5 {[%clk 0:00:02]} 51. Be8 {[%clk 0:00:09]}  Rd5 {[%clk 0:00:02]} 52. Bxa4 {[%clk 0:00:08]}  b5 {[%clk 0:00:02]} 53. Nb6 {[%clk 0:00:08]}  Rd6 {[%clk 0:00:03]} 54. Bxb5 {[%clk 0:00:08]}  Rxb6 {[%clk 0:00:03]} 55. Bd3 {[%clk 0:00:09]}  g6 {[%clk 0:00:04]} 56. Kc3 {[%clk 0:00:08]}  Rc6+ {[%clk 0:00:04]} 57. Bc4 {[%clk 0:00:08]}  Kc7 {[%clk 0:00:04]} 58. b4 {[%clk 0:00:08]}  Rb6 {[%clk 0:00:04]} 59. b5 {[%clk 0:00:08]}  Kd6 {[%clk 0:00:05]} 60. Kd3 {[%clk 0:00:07]}  h6 {[%clk 0:00:05]} 61. Ke2 {[%clk 0:00:07]}  g5 {[%clk 0:00:06]} 62. Kf3 {[%clk 0:00:08]}  Rb8 {[%clk 0:00:05]} 63. g4 {[%clk 0:00:08]}  Rc8 {[%clk 0:00:05]} 64. Bd3 {[%clk 0:00:07]}  fxg4+ {[%clk 0:00:05]} 65. Kxg4 {[%clk 0:00:08]}  Rc3 {[%clk 0:00:05]} 66. Be4 {[%clk 0:00:08]}  Rb3 {[%clk 0:00:05]} 67. Bc6 {[%clk 0:00:07]}  Rb2 {[%clk 0:00:05]} 68. Kg3 {[%clk 0:00:08]}  Rc2 {[%clk 0:00:04]} 69. e4 {[%clk 0:00:08]}  Rd2 {[%clk 0:00:04]} 70. d5 {[%clk 0:00:05]}  Rb2 {[%clk 0:00:04]} 71. f3 {[%clk 0:00:05]}  Ke5 {[%clk 0:00:05]} 72. Kh3 {[%clk 0:00:04]}  Kf4 {[%clk 0:00:04]} 73. d6 {[%clk 0:00:04]}  Rd2 {[%clk 0:00:01]} 74. d7 {[%clk 0:00:03]}  Rd1 {[%clk 0:00:02]} 75. g3+ {[%clk 0:00:03]}  Kxf3 {[%clk 0:00:02]} 76. e5+ {[%clk 0:00:03]}  Kf2 {[%clk 0:00:02]} 77. e6 {[%clk 0:00:03]}  h5 {[%clk 0:00:00]} 78. e7 {[%clk 0:00:03]} 1-0


[Site "https://www.chess.com"]

[Event "Titled Tuesday Blitz June 20 Late 2023"]
[White "Martic, Ivan"]
[Black "Kielinkei"]
[WhiteFideId "929301"]
[WhiteElo "2346"]
[BlackElo "2452"]
[Result "1-0"]
[Round "9"]
[TimeControl "180+2"]
[Date "2023.06.20"]
[WhiteClock "0:00:06"]
[BlackClock "0:00:00"]
[Board "62"]

1. e4 {[%clk 0:02:55]}  c5 {[%clk 0:02:59]} 2. Nf3 {[%clk 0:02:54]}  e6 {[%clk 0:03:00]} 3. d4 {[%clk 0:02:54]}  cxd4 {[%clk 0:03:01]} 4. Nxd4 {[%clk 0:02:55]}  Nc6 {[%clk 0:03:01]} 5. Nb5 {[%clk 0:02:53]}  d6 {[%clk 0:02:58]} 6. c4 {[%clk 0:02:53]}  a6 {[%clk 0:02:56]} 7. N5c3 {[%clk 0:02:51]}  Nf6 {[%clk 0:02:56]} 8. Be2 {[%clk 0:02:50]}  Be7 {[%clk 0:02:56]} 9. O-O {[%clk 0:02:50]}  O-O {[%clk 0:02:56]} 10. Be3 {[%clk 0:02:50]}  b6 {[%clk 0:02:37]} 11. Qb3 {[%clk 0:02:42]}  Rb8 {[%clk 0:02:35]} 12. Na3 {[%clk 0:02:41]}  Bd7 {[%clk 0:02:23]} 13. Rfd1 {[%clk 0:02:38]}  Qc7 {[%clk 0:02:20]} 14. Rac1 {[%clk 0:02:37]}  Qb7 {[%clk 0:02:11]} 15. f3 {[%clk 0:02:35]}  Na5 {[%clk 0:02:06]} 16. Qc2 {[%clk 0:02:33]}  Rfc8 {[%clk 0:02:03]} 17. b4 {[%clk 0:02:26]}  Nc6 {[%clk 0:02:03]} 18. Qb3 {[%clk 0:02:21]}  Ne5 {[%clk 0:01:53]} 19. Nc2 {[%clk 0:02:06]}  Rc7 {[%clk 0:01:46]} 20. Nd4 {[%clk 0:02:00]}  Rbc8 {[%clk 0:01:42]} 21. Na4 {[%clk 0:02:00]}  b5 {[%clk 0:01:29]} 22. cxb5 {[%clk 0:01:56]}  axb5 {[%clk 0:01:28]} 23. Nc3 {[%clk 0:01:48]}  Nc4 {[%clk 0:01:27]} 24. Bf2 {[%clk 0:01:43]}  d5 {[%clk 0:01:11]} 25. exd5 {[%clk 0:01:34]}  Nxd5 {[%clk 0:01:06]} 26. Nxd5 {[%clk 0:01:34]}  exd5 {[%clk 0:00:55]} 27. Bd3 {[%clk 0:01:15]}  Ra8 {[%clk 0:00:43]} 28. Bf5 {[%clk 0:00:51]}  Bf6 {[%clk 0:00:31]} 29. Bxd7 {[%clk 0:00:47]}  Rxd7 {[%clk 0:00:31]} 30. Nf5 {[%clk 0:00:46]}  Ra3 {[%clk 0:00:25]} 31. Qb1 {[%clk 0:00:45]}  g6 {[%clk 0:00:20]} 32. Bd4 {[%clk 0:00:41]}  Qa6 {[%clk 0:00:17]} 33. Bxf6 {[%clk 0:00:21]}  Qxf6 {[%clk 0:00:18]} 34. Nd4 {[%clk 0:00:20]}  Qa6 {[%clk 0:00:18]} 35. h3 {[%clk 0:00:19]}  Rxa2 {[%clk 0:00:16]} 36. Re1 {[%clk 0:00:20]}  Rd8 {[%clk 0:00:13]} 37. Re7 {[%clk 0:00:18]}  Rb2 {[%clk 0:00:10]} 38. Qd3 {[%clk 0:00:17]}  Qa2 {[%clk 0:00:09]} 39. Qf1 {[%clk 0:00:16]}  Rd2 {[%clk 0:00:06]} 40. Nc6 {[%clk 0:00:14]}  Rc8 {[%clk 0:00:05]} 41. Na7 {[%clk 0:00:10]}  Rb8 {[%clk 0:00:04]} 42. Rce1 {[%clk 0:00:10]}  Kg7 {[%clk 0:00:02]} 43. Nc6 {[%clk 0:00:10]}  Ra8 {[%clk 0:00:03]} 44. Kh1 {[%clk 0:00:09]}  Qb2 {[%clk 0:00:03]} 45. Qg1 {[%clk 0:00:09]}  Qf6 {[%clk 0:00:03]} 46. Rd7 {[%clk 0:00:07]}  Qxc6 {[%clk 0:00:03]} 47. Ree7 {[%clk 0:00:07]}  Nd6 {[%clk 0:00:02]} 48. Qe1 {[%clk 0:00:05]}  Rc2 {[%clk 0:00:02]} 49. Qe5+ {[%clk 0:00:05]}  Kg8 {[%clk 0:00:01]} 50. Rxd6 {[%clk 0:00:06]}  Rc1+ {[%clk 0:00:01]} 51. Kh2 {[%clk 0:00:06]}  Qc8 {[%clk 0:00:01]} 52. Qf6 {[%clk 0:00:06]}  Qf8 {[%clk 0:00:01]} 53. Rdd7 {[%clk 0:00:06]}  Re8 {[%clk 0:00:01]} 54. Rxf7 {[%clk 0:00:06]}  Ree1 {[%clk 0:00:01]} 55. Rg7+ {[%clk 0:00:06]}  Kh8 {[%clk 0:00:00]} 56. Rxh7+ {[%clk 0:00:06]} 1-0


[Site "https://www.chess.com"]